bitfinex/quotes_SOLUSD_20250622
["timestamp","ask_amount","ask_price","bid_price","bid_amount"]
[1750624121452,22.23580882,127.28,127.27,18.64964886]
[1750624121776,26.0,127.26,127.2,0.71]
[1750624122072,22.23580882,127.21,127.19,50.92]
[1750624122245,22.23580882,127.2,127.18,14.96]
[1750624122445,22.23580882,127.19,127.18,14.96]
[1750624122656,22.23580882,127.19,127.18,33.60964886]
[1750624122875,22.23580882,127.19,127.18,14.96]
[1750624124249,58.61296916,127.19,127.18,14.96]
[1750624124655,58.61296916,127.19,127.15,1.84837225]
[1750624124856,32.61296916,127.16,127.15,1.84837225]
[1750624125499,32.61296916,127.16,127.15,20.49802111]
[1750624126669,32.61296916,127.16,127.15,1.84837225]
[1750624126984,58.61296916,127.16,127.15,1.34837225]
[1750624128376,8.0903,127.24,127.15,1.34837225]
[1750624128579,8.0903,127.24,127.16,18.64964886]
[1750624128782,32.61296916,127.19,127.16,19.36964886]
[1750624129080,26.0,127.21,127.18,18.64964886]
[1750624129271,32.61296916,127.21,127.17,19.36964886]
[1750624129476,32.61296916,127.21,127.18,0.72]
[1750624129867,6.581,127.24,127.17,32.61296916]
[1750624130059,32.61296916,127.26,127.18,18.64964886]
[1750624130060,32.61296916,127.19,127.18,18.64964886]
[1750624130671,32.61296916,127.2,127.18,18.64964886]
[1750624131068,7.9946,127.28,127.18,18.64964886]
[1750624131278,32.61296916,127.23,127.2,19.36964886]
[1750624131480,32.61296916,127.22,127.2,19.36964886]
[1750624131851,32.61296916,127.23,127.2,19.36964886]
[1750624132057,32.61296916,127.22,127.2,19.36964886]
[1750624132558,32.61296916,127.23,127.2,19.36964886]
[1750624132769,32.61296916,127.23,127.2,18.64964886]
[1750624132968,32.61296916,127.23,127.22,18.64964886]
[1750624133160,32.61296916,127.24,127.22,18.64964886]
[1750624133371,32.61296916,127.23,127.19,19.36964886]
[1750624133571,32.61296916,127.23,127.2,0.72]
[1750624133980,32.61296916,127.23,127.21,18.64964886]
[1750624135958,26.0,127.25,127.21,18.64964886]
[1750624136158,26.0,127.25,127.2,19.36964886]
[1750624136159,32.61296916,127.24,127.2,19.36964886]
[1750624136563,6.4016,127.28,127.22,18.64964886]
[1750624136769,1.5493,127.32,127.19,18.64964886]
[1750624136770,32.61296916,127.23,127.19,18.64964886]
[1750624137092,32.61296916,127.23,127.21,18.64964886]
[1750624137276,26.0,127.27,127.21,19.36964886]
[1750624137277,32.61296916,127.24,127.21,19.36964886]
[1750624139391,32.61296916,127.22,127.18,18.64964886]
[1750624139698,32.61296916,127.21,127.18,19.36964886]
[1750624140388,32.61296916,127.25,127.21,0.72]
[1750624140587,32.61296916,127.22,127.18,18.64964886]
[1750624140794,32.61296916,127.2,127.18,18.64964886]
[1750624141280,32.61296916,127.2,127.19,20.96005775]
[1750624141769,26.0,127.21,127.2,18.64964886]
[1750624141964,26.0,127.21,127.19,2.31040889]
[1750624141965,58.61296916,127.21,127.19,2.31040889]
[1750624142180,32.61296916,127.2,127.19,2.31040889]
[1750624142382,26.0,127.21,127.19,2.31040889]
[1750624142585,32.61296916,127.2,127.19,2.31040889]
[1750624144873,26.0,127.17,127.14,18.64964886]
[1750624145071,32.61296916,127.15,127.14,18.64964886]
[1750624145674,32.61296916,127.16,127.14,18.64964886]
[1750624145997,32.61296916,127.15,127.14,18.64964886]
[1750624146199,8.2297,127.24,127.11,18.64964886]
[1750624146385,22.30622867,127.16,127.11,18.64964886]
[1750624146588,22.30622867,127.16,127.13,19.36964886]
[1750624146801,26.0,127.21,127.14,0.72]
[1750624146994,22.30622867,127.17,127.14,0.72]
[1750624147399,22.30622867,127.16,127.12,0.72]
[1750624147600,22.30622867,127.15,127.13,18.64964886]
[1750624147805,22.30622867,127.17,127.13,19.36964886]
[1750624148295,22.30622867,127.17,127.13,18.64964886]
[1750624148484,22.30622867,127.17,127.14,0.72]
[1750624148690,22.30622867,127.16,127.14,0.72]
[1750624148889,22.30622867,127.17,127.14,0.72]
[1750624149304,22.30622867,127.15,127.12,0.72]
[1750624149611,22.30622867,127.15,127.13,18.64964886]
[1750624150111,26.0,127.18,127.13,18.64964886]
[1750624150321,22.30622867,127.16,127.13,19.36964886]
[1750624151107,22.30622867,127.16,127.13,18.64964886]
[1750624151319,22.30622867,127.17,127.13,22.30622867]
[1750624151487,8.2297,127.24,127.14,26.0]
[1750624151694,8.2297,127.24,127.13,40.95587753]
[1750624151695,22.30622867,127.21,127.18,18.64964886]
[1750624152012,22.30622867,127.23,127.2,18.64964886]
[1750624152314,22.30622867,127.22,127.2,18.64964886]
[1750624153919,26.0,127.24,127.2,18.64964886]
[1750624154212,22.30622867,127.23,127.19,18.64964886]
[1750624154416,22.30622867,127.23,127.2,0.68]
[1750624155009,22.30622867,127.23,127.19,19.32964886]
[1750624155512,22.30622867,127.23,127.2,0.68]
[1750624155719,22.30622867,127.26,127.22,19.32964886]
[1750624155899,22.30622867,127.27,127.24,18.64964886]
[1750624156100,48.30622867,127.27,127.24,18.64964886]
[1750624156294,6.4179,127.31,127.24,18.64964886]
[1750624156491,6.4179,127.31,127.24,19.32964886]
[1750624156709,22.30622867,127.28,127.24,19.32964886]
[1750624157035,22.30622867,127.27,127.24,19.32964886]
[1750624157530,22.30622867,127.25,127.24,19.32964886]
[1750624157707,22.30622867,127.25,127.22,18.64964886]
[1750624157884,22.30622867,127.23,127.22,19.32964886]
[1750624158090,48.30622867,127.28,127.2,18.64964886]
[1750624158323,22.30622867,127.24,127.2,19.32964886]
[1750624159695,22.30622867,127.24,127.22,18.64964886]
[1750624161414,48.30622867,127.28,127.24,18.64964886]
[1750624161415,22.30622867,127.26,127.24,18.64964886]
[1750624161720,22.30622867,127.27,127.24,18.64964886]
[1750624161920,22.30622867,127.26,127.23,18.64964886]
[1750624162691,26.0,127.28,127.23,18.64964886]
[1750624162692,22.30622867,127.25,127.23,18.64964886]
[1750624162900,22.30622867,127.24,127.2,18.64964886]
[1750624163098,22.30622867,127.24,127.2,19.32964886]
[1750624163330,22.30622867,127.24,127.21,0.68]
[1750624163920,48.30622867,127.28,127.21,0.68]
[1750624164110,22.30622867,127.22,127.19,18.64964886]
[1750624164419,22.30622867,127.28,127.22,18.64964886]
[1750624164420,26.0,127.24,127.22,18.64964886]
[1750624164599,22.30622867,127.24,127.22,18.64964886]
[1750624168417,22.30622867,127.23,127.22,18.64964886]
[1750624168641,22.30622867,127.23,127.19,22.30622867]
[1750624168642,22.30622867,127.23,127.2,18.64964886]
[1750624168935,22.30622867,127.22,127.19,19.32964886]
[1750624170229,22.30622867,127.2,127.19,18.64964886]
[1750624170443,22.30622867,127.2,127.18,19.32964886]
[1750624170615,1.5516,127.32,127.22,18.64964886]
[1750624170819,1.5516,127.32,127.24,18.64964886]
[1750624170820,22.30622867,127.3,127.24,18.64964886]
[1750624171143,22.30622867,127.28,127.26,18.64964886]
[1750624171460,22.30622867,127.27,127.23,18.86792782]
[1750624171617,22.30622867,127.25,127.23,18.86792782]
[1750624171818,22.30622867,127.24,127.23,18.86792782]
[1750624172046,22.30622867,127.24,127.23,0.21827896]
[1750624172847,26.0,127.3,127.23,0.21827896]
[1750624173029,22.30622867,127.27,127.23,0.21827896]
[1750624173232,22.30622867,127.28,127.25,18.64964886]
[1750624173627,22.30622867,127.28,127.24,18.64964886]
[1750624173832,6.5347,127.33,127.26,18.64964886]
[1750624174122,22.30622867,127.3,127.26,18.64964886]
[1750624174349,22.30622867,127.31,127.27,18.64964886]
[1750624174572,6.5489,127.36,127.29,18.64964886]
[1750624174758,22.30622867,127.36,127.32,18.64964886]
[1750624175061,22.30622867,127.38,127.34,18.64964886]
[1750624175237,22.30622867,127.4,127.33,18.64964886]
[1750624175422,22.30622867,127.39,127.36,18.64964886]
[1750624175841,22.30622867,127.39,127.35,18.64964886]
[1750624176058,48.30622867,127.39,127.35,41.63587753]
[1750624176258,26.0,127.39,127.37,18.64964886]
[1750624176435,32.49866653,127.4,127.37,18.64964886]
[1750624176639,32.49866653,127.39,127.37,18.64964886]
[1750624177059,58.49866653,127.4,127.37,18.64964886]
[1750624177271,26.0,127.4,127.37,18.64964886]
[1750624177454,58.49866653,127.4,127.37,18.64964886]
[1750624177642,32.49866653,127.4,127.37,18.64964886]
[1750624177837,26.0,127.41,127.37,18.64964886]
[1750624178043,39.04756653,127.44,127.33,18.64964886]
[1750624178044,58.49866653,127.38,127.33,18.64964886]
[1750624178242,32.49866653,127.34,127.33,18.64964886]
[1750624178537,32.49866653,127.34,127.31,19.32964886]
[1750624178756,32.49866653,127.36,127.32,18.64964886]
[1750624178955,32.49866653,127.36,127.33,0.68]
[1750624179156,26.0,127.37,127.33,0.68]
[1750624179360,32.49866653,127.37,127.33,0.68]
[1750624179680,26.0,127.38,127.33,0.68]
[1750624179681,32.49866653,127.36,127.33,0.68]
[1750624179961,26.0,127.41,127.34,18.64964886]
[1750624180137,32.49866653,127.36,127.34,18.64964886]
[1750624180341,26.0,127.38,127.34,18.64964886]
[1750624180542,32.49866653,127.38,127.34,18.64964886]
[1750624180752,32.49866653,127.38,127.34,19.32964886]
[1750624180970,32.49866653,127.36,127.33,19.32964886]
[1750624181155,32.49866653,127.37,127.33,19.32964886]
[1750624181772,32.49866653,127.37,127.34,19.32964886]
[1750624182878,32.49866653,127.37,127.33,32.49866653]
[1750624182879,32.49866653,127.39,127.36,19.32964886]
[1750624183049,58.49866653,127.4,127.36,19.32964886]
[1750624183251,58.49866653,127.4,127.36,18.64964886]
[1750624183457,58.49866653,127.4,127.37,19.32964886]
[1750624183865,32.49866653,127.39,127.36,18.64964886]
[1750624184392,32.49866653,127.39,127.36,19.39964886]
[1750624184776,58.49866653,127.4,127.36,51.89831539]
[1750624184973,58.49866653,127.4,127.36,19.39964886]
[1750624185485,32.49866653,127.4,127.36,19.39964886]
[1750624186191,26.0,127.39,127.33,32.49866653]
[1750624186392,32.49866653,127.34,127.32,0.75]
[1750624186595,32.49866653,127.36,127.32,0.75]
[1750624186768,32.49866653,127.36,127.33,19.39964886]
[1750624186969,32.49866653,127.34,127.33,18.64964886]
[1750624187165,32.49866653,127.34,127.31,14.0]
[1750624187490,32.49866653,127.32,127.31,14.0]
[1750624187869,32.49866653,127.32,127.31,32.64964886]
[1750624188089,32.49866653,127.32,127.31,14.0]
[1750624189682,58.49866653,127.32,127.31,14.0]
[1750624192487,58.49866653,127.32,127.24,18.64964886]
[1750624192488,26.0,127.29,127.24,18.64964886]
[1750624192690,32.49866653,127.25,127.23,14.0]
[1750624192995,32.49866653,127.25,127.24,18.64964886]
[1750624193374,32.49866653,127.25,127.23,14.0]
[1750624193606,32.49866653,127.24,127.23,14.0]
[1750624193986,26.0,127.21,127.18,18.64964886]
[1750624194186,32.49866653,127.19,127.18,18.64964886]
[1750624194585,32.49866653,127.21,127.18,18.64964886]
[1750624194830,32.49866653,127.21,127.18,19.39964886]
[1750624195117,58.49866653,127.22,127.19,0.75]
[1750624195316,32.49866653,127.21,127.19,0.75]
[1750624195901,58.49866653,127.22,127.19,0.75]
[1750624196411,32.49866653,127.21,127.19,0.75]
[1750624196612,32.49866653,127.2,127.18,18.64964886]
[1750624196818,26.0,127.22,127.18,18.64964886]
[1750624196983,32.49866653,127.26,127.18,18.64964886]
[1750624196984,32.49866653,127.2,127.18,18.64964886]
[1750624198315,22.28766124,127.2,127.18,18.64964886]
[1750624199741,26.0,127.25,127.2,18.64964886]
[1750624199933,22.28766124,127.21,127.2,18.64964886]
[1750624200625,26.0,127.25,127.18,41.6873101]
[1750624200841,22.28766124,127.19,127.18,18.64964886]
[1750624201044,145.55466124,127.28,127.18,41.6873101]
[1750624201336,22.28766124,127.22,127.21,18.64964886]
[1750624201636,6.1714,127.29,127.21,0.75]
[1750624201637,22.28766124,127.25,127.21,0.75]
[1750624201829,22.28766124,127.26,127.22,18.64964886]
[1750624202033,22.28766124,127.24,127.21,18.64964886]
[1750624202234,22.28766124,127.25,127.21,19.39964886]
[1750624202405,22.28766124,127.27,127.24,0.75]
[1750624202607,22.28766124,127.27,127.25,18.64964886]
[1750624203438,22.28766124,127.26,127.25,18.64964886]
[1750624203729,22.28766124,127.29,127.26,0.75]
[1750624203934,22.28766124,127.29,127.27,18.64964886]
[1750624204309,6.5951,127.33,127.27,18.64964886]
[1750624204310,22.28766124,127.28,127.27,18.64964886]
[1750624204531,26.0,127.3,127.24,19.39964886]
[1750624204736,22.28766124,127.26,127.24,19.39964886]
[1750624204927,26.0,127.3,127.21,6.1617]
[1750624204928,22.28766124,127.25,127.22,18.64964886]
[1750624205245,22.28766124,127.23,127.22,18.64964886]
[1750624205606,22.28766124,127.24,127.22,0.75]
[1750624205807,22.28766124,127.23,127.22,0.75]
[1750624206029,22.28766124,127.23,127.2,19.39964886]
[1750624207243,22.28766124,127.22,127.2,19.39964886]
[1750624207410,26.0,127.24,127.19,18.64964886]
[1750624207610,22.28766124,127.21,127.19,18.64964886]
[1750624208015,22.28766124,127.2,127.18,0.75]
[1750624208229,22.28766124,127.2,127.17,51.71]
[1750624208428,22.28766124,127.2,127.18,18.64964886]
[1750624208612,22.28766124,127.19,127.18,18.64964886]
[1750624208819,22.28766124,127.19,127.1,36.57766124]
[1750624209026,48.28766124,127.2,127.1,14.29]
[1750624209027,22.28766124,127.13,127.1,14.29]
[1750624209418,22.28766124,127.13,127.1,13.54]
[1750624209622,22.28766124,127.14,127.11,0.75]
[1750624210036,22.28766124,127.14,127.1,13.54]
[1750624210037,22.28766124,127.12,127.1,13.54]
[1750624210213,32.64384687,127.11,127.1,13.54]
[1750624211039,58.64384687,127.11,127.06,51.0]
[1750624211235,58.64384687,127.07,127.02,14.29]
[1750624211442,32.64384687,127.03,127.02,13.54]
[1750624212111,32.64384687,127.03,126.96,0.75]
[1750624212112,26.0,127.0,126.96,0.75]
[1750624212514,32.64384687,126.99,126.96,0.75]
[1750624212732,26.0,127.05,126.95,51.75]
[1750624212937,32.64384687,126.99,126.96,0.75]
[1750624213140,32.64384687,126.98,126.95,51.0]
[1750624213321,32.64384687,126.96,126.88,46.95384687]
[1750624213529,32.64384687,126.93,126.89,32.64384687]
[1750624213828,26.0,126.98,126.89,0.68]
[1750624214032,26.0,126.98,126.88,13.56]
[1750624214033,32.64384687,126.91,126.88,13.56]
[1750624214246,26.0,126.95,126.89,0.68]
[1750624214414,39.11305028,127.06,126.89,26.0]
[1750624214619,32.64384687,126.97,126.94,18.64964886]
[1750624214945,32.64384687,127.0,126.96,51.29349573]
[1750624215112,40.84414687,127.08,126.98,18.64964886]
[1750624215113,32.64384687,127.01,126.98,18.64964886]
[1750624215311,26.0,127.05,126.98,18.64964886]
[1750624215541,32.64384687,127.0,126.98,18.64964886]
[1750624215847,32.64384687,126.99,126.94,18.64964886]
[1750624216010,80.76103099,127.08,126.94,18.64964886]
[1750624216011,32.64384687,126.98,126.94,18.64964886]
[1750624216213,40.84414687,127.08,126.95,0.68]
[1750624216410,32.64384687,127.02,126.99,18.64964886]
[1750624216627,32.64384687,127.03,126.99,18.64964886]
[1750624216827,6.499,127.13,126.99,19.32964886]
[1750624217031,26.0,127.1,127.03,18.64964886]
[1750624217235,26.0,127.1,127.02,51.29349573]
[1750624217433,6.499,127.13,127.02,18.64964886]
[1750624217612,32.64384687,127.06,127.02,18.64964886]
[1750624217822,32.64384687,127.06,127.02,19.32964886]
[1750624218148,6.499,127.13,127.01,18.64964886]
[1750624218330,32.64384687,127.06,127.02,0.68]
[1750624218643,32.64384687,127.05,127.02,0.68]
[1750624218939,26.0,127.1,127.01,18.64964886]
[1750624219240,32.64384687,127.04,127.0,19.32964886]
[1750624219431,32.64384687,127.04,127.0,51.97349573]
[1750624219827,32.64384687,127.04,127.0,19.32964886]
[1750624220246,26.0,127.05,126.99,19.32964886]
[1750624220543,32.64384687,127.03,126.99,19.32964886]
[1750624220719,32.64384687,127.02,126.99,19.32964886]
[1750624221251,32.64384687,127.0,126.98,18.64964886]
[1750624221623,26.0,127.05,126.98,18.64964886]
[1750624221825,26.0,127.1,126.98,19.32964886]
[1750624222136,32.64384687,127.02,127.0,18.64964886]
[1750624222338,26.0,127.04,127.0,18.64964886]
[1750624222641,32.64384687,127.02,127.0,18.64964886]
[1750624222849,58.64384687,127.04,127.0,0.68]
[1750624223021,32.64384687,127.03,127.0,0.68]
[1750624223218,6.499,127.13,127.01,18.64964886]
[1750624223422,6.499,127.13,126.99,18.64964886]
[1750624223423,32.64384687,127.07,127.03,51.97349573]
[1750624223621,6.499,127.13,127.05,18.64964886]
[1750624223842,6.573,127.18,127.07,18.64964886]
[1750624224049,32.64384687,127.11,127.07,51.29349573]
[1750624224349,6.573,127.18,127.09,18.64964886]
[1750624224591,32.64384687,127.12,127.08,18.64964886]
[1750624224716,32.64384687,127.13,127.1,19.32964886]
[1750624224919,32.64384687,127.12,127.1,18.64964886]
[1750624225134,26.0,127.14,127.09,0.68]
[1750624225330,32.64384687,127.14,127.1,19.32964886]
[1750624225521,32.64384687,127.13,127.1,19.32964886]
[1750624225726,26.0,127.15,127.1,19.32964886]
[1750624225934,32.64384687,127.14,127.1,19.32964886]
[1750624226252,32.64384687,127.13,127.12,18.64964886]
[1750624226552,32.64384687,127.13,127.1,18.64964886]
[1750624226851,32.64384687,127.13,127.06,32.64384687]
[1750624226852,58.64384687,127.11,127.06,18.64964886]
[1750624227018,32.64384687,127.08,127.06,18.64964886]
[1750624227757,32.64384687,127.09,127.06,19.32964886]
[1750624228123,6.573,127.18,127.08,18.64964886]
[1750624228331,32.64384687,127.13,127.08,51.29349573]
[1750624228531,32.64384687,127.14,127.1,19.32964886]
[1750624228745,6.3225,127.23,127.12,51.97349573]
[1750624228946,32.64384687,127.16,127.14,18.64964886]
[1750624229161,32.64384687,127.17,127.14,19.32964886]
[1750624229361,32.64384687,127.16,127.13,18.64964886]
[1750624229563,32.64384687,127.16,127.13,19.32964886]
[1750624230164,32.64384687,127.15,127.13,19.32964886]
[1750624230363,32.64384687,127.16,127.13,19.32964886]
[1750624230744,32.64384687,127.15,127.13,19.32964886]
[1750624230945,32.64384687,127.16,127.13,19.32964886]
[1750624231179,26.0,127.18,127.13,19.32964886]
[1750624231466,32.64384687,127.17,127.14,0.68]
[1750624231667,32.64384687,127.18,127.15,18.64964886]
[1750624231870,32.64384687,127.21,127.17,0.68]
[1750624232050,32.64384687,127.22,127.18,18.64964886]
[1750624232249,32.64384687,127.26,127.18,18.64964886]
[1750624232250,32.64384687,127.19,127.18,18.64964886]
[1750624232453,32.64384687,127.19,127.11,32.64384687]
[1750624232655,32.64384687,127.15,127.13,19.32964886]
[1750624233055,32.64384687,127.16,127.13,19.32964886]
[1750624233262,77.00200552,127.26,127.13,19.32964886]
[1750624233263,26.0,127.23,127.13,19.32964886]
[1750624233456,77.00200552,127.26,127.15,18.64964886]
[1750624233457,32.64384687,127.17,127.15,18.64964886]
[1750624233658,32.64384687,127.18,127.16,18.64964886]
[1750624233874,32.64384687,127.18,127.16,19.32964886]
[1750624234184,32.64384687,127.17,127.14,18.64964886]
[1750624234360,27.5723,127.23,127.12,13.14]
[1750624234675,26.0,127.19,127.13,18.64964886]
[1750624234855,32.64384687,127.15,127.13,18.64964886]
[1750624235447,26.0,127.19,127.13,19.32964886]
[1750624235688,32.64384687,127.19,127.15,18.64964886]
[1750624235982,32.64384687,127.19,127.17,19.32964886]
[1750624236147,32.64384687,127.19,127.15,18.64964886]
[1750624236347,32.64384687,127.19,127.15,19.32964886]
[1750624236849,26.0,127.23,127.15,19.32964886]
[1750624237054,32.64384687,127.19,127.15,51.29349573]
[1750624237266,7.9367,127.28,127.18,18.64964886]
[1750624237485,32.64384687,127.22,127.18,18.64964886]
[1750624237662,32.64384687,127.22,127.18,51.97349573]
[1750624237847,32.64384687,127.22,127.2,18.64964886]
[1750624238054,7.9367,127.28,127.19,51.29349573]
[1750624238361,32.64384687,127.25,127.21,19.32964886]
[1750624238549,32.64384687,127.24,127.21,19.32964886]
[1750624238868,6.3644,127.28,127.21,19.32964886]
[1750624238869,26.0,127.27,127.21,19.32964886]
[1750624239078,32.64384687,127.25,127.21,19.32964886]
[1750624239245,26.0,127.27,127.2,13.14]
[1750624239447,26.0,127.27,127.16,26.0]
[1750624239448,32.64384687,127.21,127.14,31.78964886]
[1750624239660,32.64384687,127.17,127.14,32.46964886]
[1750624239899,32.64384687,127.17,127.14,13.82]
[1750624240064,32.64384687,127.18,127.15,19.32964886]
[1750624240274,26.0,127.25,127.17,18.64964886]
[1750624240457,32.64384687,127.26,127.17,18.64964886]
[1750624240792,8.1971,127.32,127.21,51.29349573]
[1750624240953,32.64384687,127.28,127.23,51.29349573]
[1750624241259,32.64384687,127.28,127.25,19.32964886]
[1750624241460,32.64384687,127.29,127.25,18.64964886]
[1750624241671,32.64384687,127.28,127.27,18.64964886]
[1750624241873,32.64384687,127.28,127.22,13.82]
[1750624242045,26.0,127.32,127.23,18.64964886]
[1750624242254,32.64384687,127.25,127.23,18.64964886]
[1750624242966,32.64384687,127.26,127.23,18.64964886]
[1750624243781,32.64384687,127.26,127.23,19.32964886]
[1750624244074,32.64384687,127.25,127.23,18.64964886]
[1750624244281,32.64384687,127.26,127.23,19.34964886]
[1750624244487,32.64384687,127.27,127.23,19.34964886]
[1750624244690,32.64384687,127.27,127.25,18.64964886]
[1750624244987,32.64384687,127.28,127.25,18.64964886]
[1750624245187,26.0,127.32,127.25,18.64964886]
[1750624245379,32.64384687,127.3,127.25,51.29349573]
[1750624245578,32.64384687,127.32,127.28,18.64964886]
[1750624245777,32.64384687,127.3,127.28,18.64964886]
[1750624245992,32.64384687,127.29,127.28,18.64964886]
[1750624246502,32.64384687,127.29,127.27,18.64964886]
[1750624246793,32.64384687,127.29,127.26,19.34964886]
[1750624247199,32.64384687,127.29,127.27,0.7]
[1750624247877,32.64384687,127.29,127.26,18.64964886]
[1750624248070,32.64384687,127.29,127.25,32.64384687]
[1750624248071,32.64384687,127.27,127.25,18.64964886]
[1750624248305,32.64384687,127.26,127.2,0.7]
[1750624248476,32.64384687,127.22,127.2,0.7]
[1750624248676,26.0,127.27,127.21,18.64964886]
[1750624248677,32.64384687,127.23,127.21,18.64964886]
[1750624248876,32.64384687,127.23,127.2,0.7]
[1750624249100,32.64384687,127.22,127.2,0.7]
[1750624249399,32.64384687,127.22,127.2,18.64964886]
[1750624249983,26.0,127.32,127.21,19.34964886]
[1750624250187,123.267,127.35,127.23,18.64964886]
[1750624250381,32.64384687,127.28,127.25,18.64964886]
[1750624250574,32.64384687,127.28,127.23,32.64384687]
[1750624250575,32.64384687,127.27,127.24,18.64964886]
[1750624250802,32.64384687,127.28,127.24,19.34964886]
[1750624250983,32.64384687,127.35,127.26,18.64964886]
[1750624251173,32.64384687,127.35,127.24,18.64964886]
[1750624251174,32.64384687,127.29,127.24,51.29349573]
[1750624251380,32.64384687,127.29,127.25,0.7]
[1750624251581,32.64384687,127.28,127.25,0.7]
[1750624251800,26.0,127.32,127.24,51.29349573]
[1750624251801,32.64384687,127.27,127.24,18.64964886]
[1750624252183,26.0,127.32,127.24,18.64964886]
[1750624252397,32.64384687,127.28,127.24,19.34964886]
[1750624252713,32.64384687,127.27,127.24,19.34964886]
[1750624253225,32.64384687,127.27,127.22,34.28134687]
[1750624253226,32.64384687,127.25,127.22,18.64964886]
[1750624253388,32.64384687,127.24,127.22,18.64964886]
[1750624253713,32.64384687,127.25,127.21,18.64964886]
[1750624253917,32.64384687,127.25,127.21,51.29349573]
[1750624254090,32.64384687,127.25,127.22,0.7]
[1750624254417,32.64384687,127.27,127.24,0.7]
[1750624254620,32.64384687,127.26,127.25,18.64964886]
[1750624254948,32.64384687,127.26,127.22,18.64964886]
[1750624255285,32.64384687,127.26,127.19,58.64384687]
[1750624255286,32.64384687,127.23,127.19,18.64964886]
[1750624255493,32.64384687,127.21,127.19,18.64964886]
[1750624255721,58.64384687,127.26,127.19,18.64964886]
[1750624256016,32.64384687,127.24,127.21,0.7]
[1750624256218,32.64384687,127.25,127.22,18.64964886]
[1750624256386,32.64384687,127.23,127.22,18.64964886]
[1750624256592,32.6644,127.28,127.21,0.7]
[1750624256593,32.64384687,127.24,127.21,0.7]
[1750624256799,32.64384687,127.23,127.21,0.7]
[1750624257495,32.64384687,127.25,127.21,0.7]
[1750624257699,32.64384687,127.23,127.2,18.64964886]
[1750624257902,32.64384687,127.23,127.2,19.34964886]
[1750624258405,32.64384687,127.24,127.2,19.34964886]
[1750624258614,32.64384687,127.23,127.21,0.7]
[1750624258850,32.64384687,127.23,127.2,18.64964886]
[1750624259021,32.64384687,127.22,127.19,18.64964886]
[1750624259226,32.64384687,127.21,127.2,26.0]
[1750624259425,32.64384687,127.21,127.2,44.64964886]
[1750624259834,32.64384687,127.22,127.21,18.64964886]
[1750624260537,32.64384687,127.23,127.2,0.7]
[1750624260733,32.64384687,127.22,127.2,0.7]
[1750624261144,26.0,127.25,127.2,0.7]
[1750624261352,32.64384687,127.22,127.2,0.7]
[1750624261749,32.64384687,127.22,127.19,18.64964886]
[1750624261750,6.6644,127.32,127.21,51.29349573]
[1750624262052,6.6644,127.32,127.26,18.64964886]
[1750624262260,1.5349,127.33,127.29,51.29349573]
[1750624262261,32.64384687,127.33,127.29,51.29349573]
[1750624262555,32.64384687,127.36,127.33,18.64964886]
[1750624262761,32.64384687,127.37,127.33,18.64964886]
[1750624262923,32.64384687,127.37,127.35,18.64964886]
[1750624263568,32.64384687,127.38,127.35,18.64964886]
[1750624263854,32.64384687,127.39,127.35,0.7]
[1750624264035,6.6644,127.46,127.35,0.7]
[1750624264226,32.64384687,127.41,127.37,32.64384687]
[1750624264429,32.64384687,127.42,127.39,18.64964886]
[1750624264853,6.6644,127.46,127.39,18.64964886]
[1750624264854,58.64384687,127.43,127.4,18.64964886]
[1750624265029,58.64384687,127.43,127.4,19.34964886]
[1750624265030,26.0,127.43,127.4,19.34964886]
[1750624265229,32.64384687,127.44,127.4,19.34964886]
[1750624265230,32.64384687,127.44,127.4,51.29349573]
[1750624265456,32.64384687,127.44,127.41,0.7]
[1750624265659,32.64384687,127.45,127.42,19.34964886]
[1750624265949,32.64384687,127.44,127.41,12.78]
[1750624266128,32.64384687,127.45,127.42,18.64964886]
[1750624266329,6.6644,127.51,127.42,51.99349573]
[1750624266559,32.64384687,127.48,127.44,19.34964886]
[1750624267554,33.14384687,127.53,127.45,18.64964886]
[1750624267764,32.64384687,127.52,127.47,51.29349573]
[1750624267936,32.64384687,127.51,127.49,18.64964886]
[1750624268134,32.64384687,127.5,127.44,0.7]
[1750624268438,33.14384687,127.53,127.51,18.64964886]
[1750624268852,0.5,127.53,127.51,18.64964886]
[1750624269029,0.5,127.53,127.51,19.34964886]
[1750624269531,32.64384687,127.52,127.51,19.34964886]
[1750624269732,32.64384687,127.52,127.49,32.12964886]
[1750624270146,32.64384687,127.51,127.49,32.12964886]
[1750624270335,32.64384687,127.5,127.38,7.85042334]
[1750624270545,26.0,127.5,127.42,0.7]
[1750624270733,26.0,127.5,127.41,63.74]
[1750624270934,33.14384687,127.53,127.41,63.74]